fUST/lending_fUST_20240115
["ID","MTS","AMOUNT","RATE_DAILY","PERIOD"]
[311681302,1705326639018,-150.5,0.0003089,30]
[311681305,1705326639029,-956.97,0.00030898,2]
[311681306,1705326639038,-956.97,0.00030898,2]
[311681308,1705326639048,-500.0,0.00030898,2]
[311681310,1705326639057,-500.0,0.00030898,2]
[311681312,1705326639067,-500.0,0.00030898,2]
[311681314,1705326639076,-429.74769752,0.00030898,2]
[311681316,1705326639087,-500.0,0.00030898,2]
[311681319,1705326639096,-500.0,0.00030898,2]
[311681320,1705326639105,-500.0,0.00030898,2]
[311681322,1705326639114,-500.0,0.00030898,2]
[311681324,1705326639124,-201.47740232,0.00030898,2]
[311681326,1705326639133,-408.61849795,0.00030898,2]
[311681328,1705326639142,-500.0,0.00030898,2]
[311681330,1705326639151,-500.0,0.00030898,2]
[311681333,1705326639160,-500.0,0.00030898,2]
[311681334,1705326639169,-244.76269691,0.00030898,2]
[311681337,1705326639178,-500.0,0.00030898,2]
[311681339,1705326639189,-476.87307517,0.00030898,2]
[311681341,1705326639198,-500.0,0.00030898,2]
[311681343,1705326639207,-500.0,0.00030898,2]
[311681344,1705326639216,-500.0,0.00030898,2]
[311681347,1705326639226,-500.0,0.00030898,2]
[311681349,1705326639235,-500.0,0.00030898,2]
[311681351,1705326639244,-500.0,0.00030898,2]
[311681352,1705326639253,-500.0,0.00030898,2]
[311681355,1705326639263,-278.83339812,0.00030898,2]
[311681357,1705326639272,-500.0,0.00030898,2]
[311681359,1705326639281,-500.0,0.00030898,2]
[311681361,1705326639290,-500.0,0.00030898,2]
[311681362,1705326639299,-500.0,0.00030898,2]
[311681364,1705326639308,-500.0,0.00030898,2]
[311681366,1705326639317,-500.0,0.00030898,2]
[311681368,1705326639327,-500.0,0.00030898,2]
[311681371,1705326639336,-500.0,0.00030898,2]
[311681373,1705326639346,-500.0,0.00030898,2]
[311681375,1705326639355,-500.0,0.00030898,2]
[311681377,1705326639365,-500.0,0.00030898,2]
[311681379,1705326639374,-500.0,0.00030898,2]
[311681381,1705326639384,-500.0,0.00030898,2]
[311681383,1705326639393,-500.0,0.00030898,2]
[311681385,1705326639402,-500.0,0.00030898,2]
[311681387,1705326639415,-500.0,0.00030898,2]
[311681390,1705326639433,-500.0,0.00030898,2]
[311681392,1705326639448,-500.0,0.00030898,2]
[311681395,1705326639460,-500.0,0.00030898,2]
[311681397,1705326639473,-500.0,0.00030898,2]
[311681399,1705326639487,-600.00000002,0.00030898,2]
[311681402,1705326639502,-500.0,0.00030898,2]
[311681404,1705326639517,-490.6335756,0.00030898,2]
[311681407,1705326639531,-500.0,0.00030898,2]
[311681409,1705326639543,-49399.71085313,0.000309,2]
[311681412,1705326639557,-4940.87,0.000309,2]
[311681414,1705326639570,-1189.76,0.00030912,2]
[311681417,1705326639583,-5000.0,0.00030923,2]
[311681419,1705326639595,-237.22239366,0.00030999,4]
[311681422,1705326639609,-22.24,0.00030999,120]
[311681424,1705326639621,-350.93054121,0.00030999,2]
[311681426,1705326639632,-282.83454941,0.00030999,3]
[311681429,1705326639648,-410.1520012,0.00030999,2]
[311681431,1705326639661,-154.9690062,0.00030999,2]
[311681434,1705326639675,-4456.41779233,0.00030999,4]
[311681436,1705326639689,-718.11946326,0.00030999,4]
[311681438,1705326639702,-12027.66556809,0.00030999,4]
[311681441,1705326639716,-154.95351395,0.00030999,4]
[311681443,1705326639729,-500.0,0.00030999,4]
[311681446,1705326639744,-607.00620001,0.00030999,4]
[311681448,1705326639757,-400.87154269,0.00030999,4]
[311681451,1705326639767,-232.80836704,0.00030999,4]
[311681453,1705326639777,-500.0,0.00030999,4]
[311681455,1705326639793,-202.73433386,0.00030999,4]
[311681458,1705326639805,-500.0,0.00030999,4]
[311681460,1705326639817,-500.0,0.00030999,4]
[311681463,1705326639831,-500.0,0.00030999,4]
[311681465,1705326639842,-500.0,0.00030999,4]
[311681467,1705326639853,-500.0,0.00030999,4]
[311681469,1705326639864,-500.0,0.00030999,4]
[311681472,1705326639876,-500.0,0.00030999,4]
[311681474,1705326639888,-500.0,0.00030999,4]
[311681476,1705326639901,-500.0,0.00030999,4]
[311681478,1705326639913,-500.0,0.00030999,4]
[311681481,1705326639925,-500.0,0.00030999,4]
[311681483,1705326639938,-500.0,0.00030999,4]
[311681485,1705326639950,-500.0,0.00030999,4]
[311681487,1705326639962,-500.0,0.00030999,4]
[311681490,1705326639975,-500.0,0.00030999,4]
[311681492,1705326639988,-500.0,0.00030999,4]
[311681494,1705326640000,-500.0,0.00030999,4]
[311681496,1705326640012,-500.0,0.00030999,4]
[311681499,1705326640024,-500.0,0.00030999,4]
[311681501,1705326640036,-500.0,0.00030999,4]
[311681503,1705326640048,-500.0,0.00030999,4]
[311681505,1705326640060,-500.0,0.00030999,4]
[311681508,1705326640072,-500.0,0.00030999,4]
[311681510,1705326640084,-500.0,0.00030999,4]
[311681512,1705326640096,-500.0,0.00030999,4]
[311681515,1705326640108,-500.0,0.00030999,4]
[311681517,1705326640120,-500.0,0.00030999,4]
[311681519,1705326640133,-500.0,0.00030999,4]
[311681521,1705326640145,-500.0,0.00030999,4]
[311681524,1705326640156,-500.0,0.00030999,4]
[311681526,1705326640169,-500.0,0.00030999,4]
[311681529,1705326640183,-500.0,0.00030999,4]
[311681531,1705326640195,-500.0,0.00030999,4]
[311681534,1705326640207,-500.0,0.00030999,4]
[311681536,1705326640218,-273.89278777,0.00030999,4]
[311681538,1705326640229,-183.07592713,0.00030999,4]
[311681540,1705326640242,-8400.41625007,0.00030999,4]
[311681542,1705326640253,-956.97,0.00030999,2]
[311681545,1705326640262,-832.92069653,0.00030999,4]
[311681547,1705326640271,-1273.29555953,0.00030999,4]
[311681551,1705326640382,-96945.25540032,0.00031,4]
[311681552,1705326640396,-118435.82304212,0.00031,14]
[311681553,1705326640406,-580.38105238,0.00031,4]
[311681554,1705326640415,-155.0,0.00031,2]
[311681555,1705326640423,-2185.34158,0.00031,2]
[311681556,1705326640433,-2185.34158,0.00031,2]
[311681557,1705326640441,-150.0,0.00031,2]
[311681558,1705326640450,-1500.0,0.00031,2]
[311681559,1705326640459,-151.0,0.00031,2]
[311681560,1705326640468,-151.0,0.00031,2]
[311681561,1705326640477,-151.0,0.00031,2]
[311681562,1705326640485,-216.45859733,0.00031,2]
[311681563,1705326640494,-274.57,0.000312,4]
[311681564,1705326640503,-2185.34158,0.00031277,2]
[311681565,1705326640512,-2185.34158,0.00031277,2]
[311681566,1705326640521,-151.0,0.00031282,2]
[311681568,1705326640530,-1000.0,0.00031482,2]
[311681570,1705326640539,-1000.0,0.00031485,2]
[311681572,1705326640548,-1000.0,0.00031491,2]
[311681574,1705326640557,-1000.0,0.00031518,2]
[311681576,1705326640566,-1000.0,0.00031519,2]
[311681578,1705326640575,-1000.0,0.00031531,2]
[311681580,1705326640584,-1000.0,0.00031536,2]
[311681582,1705326640594,-150.0,0.00031551,2]
[311681584,1705326640604,-1000.0,0.0003156,2]
[311681586,1705326640613,-1000.0,0.00031568,2]
[311681588,1705326640622,-155.47151029,0.00031571,7]
[311681590,1705326640631,-1000.0,0.00031584,2]
[311681592,1705326640640,-1000.0,0.00031584,2]
[311681594,1705326640649,-1000.0,0.00031606,2]
[311681596,1705326640658,-1000.0,0.00031608,2]
[311681598,1705326640667,-1000.0,0.00031617,2]
[311681600,1705326640676,-1000.0,0.00031626,2]
[311681602,1705326640686,-155.47151029,0.00031629,7]
[311681604,1705326640695,-1000.0,0.0003163,2]
[311681606,1705326640706,-1000.0,0.00031632,2]
[311681608,1705326640715,-1000.0,0.00031634,2]
[311681610,1705326640724,-1000.0,0.00031639,2]
[311681612,1705326640733,-1000.0,0.0003167,2]
[311681614,1705326640743,-1000.0,0.00031673,2]
[311681616,1705326640752,-1000.0,0.00031676,2]
[311681618,1705326640761,-371.41198817,0.0003168,2]
[311681620,1705326640770,-1000.0,0.00031684,2]
[311681622,1705326640779,-153.85852713,0.00031698,7]
[311681624,1705326640788,-1000.0,0.00031713,2]
[311681626,1705326640797,-1000.0,0.00031721,2]
[311681628,1705326640806,-3741.70179948,0.00031728,7]
[311681631,1705326640823,-22423.09093087,0.00031728,7]
[311681762,1705326642054,-250.0,0.00030675,2]
[311681764,1705326642064,-23835.20726965,0.00031728,7]
[311681766,1705326642073,-1000.0,0.00031735,2]
[311681768,1705326642082,-1000.0,0.00031772,2]
[311681770,1705326642091,-1000.0,0.00031778,2]
[311681772,1705326642101,-1000.0,0.00031778,2]
[311681774,1705326642110,-1000.0,0.00031783,2]
[311681776,1705326642120,-155.47151029,0.00031831,7]
[311681778,1705326642129,-1000.0,0.00031834,2]
[311681780,1705326642138,-927.09773512,0.00031863,2]
[311681782,1705326642147,-1000.0,0.00031864,2]
[311681784,1705326642157,-28158.27236518,0.000319,3]
[311681786,1705326642166,-163.700968,0.000319,2]
[311681788,1705326642175,-151.0,0.000319,2]
[311681790,1705326642185,-155.47151029,0.00031945,7]
[311681792,1705326642195,-495.0,0.00031969,30]
[311681794,1705326642204,-2185.34158,0.00031969,2]
[311681796,1705326642213,-2185.34158,0.00031969,2]
[311681798,1705326642223,-495.0,0.00031979,30]
[311681800,1705326642232,-495.0,0.00031989,30]
[311681802,1705326642241,-155.24492652,0.00031998,4]
[311681804,1705326642250,-304.15761104,0.00031998,4]
[311681806,1705326642260,-1822.74700439,0.00031999,2]
[311681808,1705326642270,-9502.11081765,0.00032,10]
[311681810,1705326642279,-74228.02019607,0.00032,15]
[311681813,1705326642290,-1256.31814623,0.00032,15]
[311681930,1705326643319,-6018.03,0.0003199,3]
[311681932,1705326643328,-7917.50025464,0.00032,15]
[311682179,1705326646364,-155.07759929,0.00031989,4]
[311682180,1705326646373,-289.10288456,0.00031989,4]
[311682181,1705326646383,-10718.27020701,0.00032,15]
[311683796,1705327467731,21289.0,0.0002,2]
[311683799,1705327545824,534.48605766,0.0002,2]
[311683801,1705327550201,3834.50418344,0.0002,2]
[311683802,1705327558031,8750.56627631,0.000194,2]
[311683803,1705327561848,534.48605766,0.0002,2]
[311683804,1705327568152,3837.65340711,0.0002,2]
[311683805,1705327570030,7527.62197049,0.000194,2]
[311683806,1705327581840,534.48605766,0.0002,2]
[311683808,1705327582966,619.93097556,0.0002,2]
[311683809,1705327589200,10288.28579584,0.0002,2]
[311683810,1705327596956,619.93097556,0.000194,2]
[311683811,1705327601863,510.61175524,0.000194,2]
[311683812,1705327603209,8184.64107985,0.000194,2]
[311683813,1705327616965,160.84972743,0.000194,2]
[311683814,1705327634124,-154.93802479,0.00023235,4]
[311683815,1705327634144,-154.93802479,0.00023236,2]
[311683816,1705327634165,-1580.16851554,0.00023236,2]
[311683817,1705327634185,-1162.49690299,0.00023237,2]
[311683958,1705327834637,-154.93802479,0.00023229,4]
[311683961,1705327834649,-322.69466175,0.0002323,2]
[311683964,1705327834659,-191.16884209,0.00023231,2]
[311683965,1705327834668,-154.93802479,0.00023237,2]
[311683966,1705327834678,-154.9690062,0.000235,2]
[311683967,1705327834688,-1580.16851554,0.00025152,2]
[311683968,1705327834698,-493.66439295,0.00025153,2]
[311683969,1705327834710,-426.65,0.00025153,2]
[311683985,1705327839498,-158.74051255,0.00025153,2]
[311683986,1705327839507,-1991.06584155,0.00026682,2]
[311683987,1705327839516,-237.32467935,0.00026683,2]
[311683988,1705327839526,-155.05578633,0.00026683,2]
[311683989,1705327839535,-155.12808355,0.00026683,2]
[311683990,1705327839544,-902.06325621,0.00026683,2]
[311683991,1705327839553,-155.30837195,0.00026683,2]
[311683992,1705327839561,-7990.7979956,0.00026684,2]
[311683993,1705327839570,-24900.0,0.00026685,2]
[311683994,1705327839578,-1000.335414,0.00026778,2]
[311683995,1705327839588,-225.394333,0.00027339,2]
[311683996,1705327839597,-10135.33451069,0.000274,2]
[311683997,1705327839606,-274.36755231,0.00028,2]
[311683998,1705327839615,-4493.64678246,0.00028749,2]
[311683999,1705327839626,-4409.06,0.00028788,3]
[311684000,1705327839635,-3674.22,0.00028788,3]
[311684001,1705327839644,-2777.08346351,0.00028789,2]
[311684002,1705327839653,-500.0,0.00028789,2]
[311684003,1705327839660,-5290.87,0.0002879,3]
[311684004,1705327839668,-155.03255684,0.00028798,2]
[311684005,1705327839675,-204.76594628,0.00028798,2]
[311684006,1705327839683,-426.67394709,0.00028798,2]
[311684007,1705327839690,-681.58739123,0.00028798,2]
[311684008,1705327839698,-852.52958646,0.00028798,2]
[311684009,1705327839705,-242.70971485,0.00028798,2]
[311684010,1705327839713,-2031.04627016,0.00028798,2]
[311684011,1705327839721,-3126.02728391,0.00028798,2]
[311684012,1705327839729,-295.71637171,0.00028799,2]
[311684013,1705327839738,-37453.7961679,0.000288,2]
[311684014,1705327839747,-18940.54627858,0.000289,2]
[311684015,1705327839755,-500.0,0.00028926,2]
[311684016,1705327839764,-1891.09041532,0.00028999,2]
[311684017,1705327839773,-831.81165951,0.00029,2]
[311684018,1705327839781,-2214.63844153,0.00029,2]
[311684019,1705327839790,-2034.69724894,0.00029,2]
[311684020,1705327839799,-2454.18896115,0.00029,2]
[311684021,1705327839807,-30160.33393787,0.00029014,4]
[311684022,1705327839816,-10973.19193482,0.00029014,4]
[311684023,1705327839826,-5000.0,0.00029014,5]
[311684024,1705327839835,-16275.24968449,0.00029021,4]
[311684025,1705327839844,-956.97,0.00029031,2]
[311684026,1705327839852,-956.97,0.00029031,2]
[311684027,1705327839861,-956.97,0.00029031,2]
[311684028,1705327839872,-956.97,0.00029031,2]
[311684029,1705327839881,-956.97,0.00029031,2]
[311684030,1705327839890,-956.97,0.00029031,2]
[311684031,1705327839899,-956.97,0.00029031,2]
[311684032,1705327839908,-50000.0,0.00029032,3]
[311684033,1705327839917,-50000.0,0.00029032,3]
[311684034,1705327839927,-50000.0,0.00029032,3]
[311684035,1705327839936,-50000.0,0.00029032,3]
[311684036,1705327839946,-81483.66174963,0.00029032,3]
[311684037,1705327839955,-200.0,0.0002935,15]
[311684038,1705327839964,-1532.67552148,0.0002943,2]
[311684039,1705327839973,-49314.41861174,0.0002979,7]
[311684040,1705327839983,-2504.25051774,0.0002989,2]
[311684041,1705327839992,-404.50736868,0.000299,2]
[311684042,1705327840001,-500.0,0.00029999,2]
[311684043,1705327840010,-500.0,0.00029999,2]
[311684044,1705327840020,-500.0,0.00029999,2]
[311684045,1705327840029,-500.0,0.00029999,2]
[311684046,1705327840038,-500.0,0.00029999,2]
[311684047,1705327840048,-429.74769752,0.00029999,2]
[311684048,1705327840057,-500.0,0.00029999,2]
[311684049,1705327840066,-500.0,0.00029999,2]
[311684050,1705327840076,-500.0,0.00029999,2]
[311684051,1705327840086,-323.29219763,0.00029999,2]
[311684052,1705327840095,-500.0,0.00029999,2]
[311684053,1705327840104,-296.25343024,0.00029999,2]
[311684054,1705327840113,-500.0,0.00029999,2]
[311684056,1705327840125,-500.0,0.00029999,2]
[311684058,1705327840134,-244.76269691,0.00029999,2]
[311684059,1705327840143,-370.9652677,0.00029999,2]
[311684061,1705327840153,-500.0,0.00029999,2]
[311684063,1705327840162,-500.0,0.00029999,2]
[311684065,1705327840171,-500.0,0.00029999,2]
[311684067,1705327840180,-500.0,0.00029999,2]
[311684069,1705327840189,-500.0,0.00029999,2]
[311684071,1705327840198,-500.0,0.00029999,2]
[311684073,1705327840207,-500.0,0.00029999,2]
[311684075,1705327840216,-500.0,0.00029999,2]
[311684076,1705327840225,-500.0,0.00029999,2]
[311684078,1705327840234,-500.0,0.00029999,2]
[311684080,1705327840243,-460.38002333,0.00029999,2]
[311684082,1705327840253,-201.47740232,0.00029999,2]
[311684084,1705327840264,-500.0,0.00029999,2]
[311684086,1705327840273,-500.0,0.00029999,2]
[311684088,1705327840283,-500.0,0.00029999,2]
[311684090,1705327840292,-500.0,0.00029999,2]
[311684092,1705327840301,-500.0,0.00029999,2]
[311684094,1705327840311,-500.0,0.00029999,2]
[311684097,1705327840320,-500.0,0.00029999,2]
[311684098,1705327840329,-500.0,0.00029999,2]
[311684100,1705327840339,-269.50607193,0.00029999,2]
[311684102,1705327840347,-500.0,0.00029999,2]
[311684104,1705327840357,-500.0,0.00029999,2]
[311684106,1705327840367,-500.0,0.00029999,2]
[311684108,1705327840377,-500.0,0.00029999,2]
[311684110,1705327840386,-500.0,0.00029999,2]
[311684111,1705327840395,-681.78811125,0.0003,3]
[311684114,1705327840404,-900.59678191,0.0003,2]
[311684117,1705327840414,-166.59677014,0.0003,2]
[311684119,1705327840425,-30296.60621537,0.0003,2]
[311684122,1705327840435,-6188.54002624,0.0003,2]
[311684123,1705327840445,-10080.32088893,0.0003,2]
[311684126,1705327840455,-2190.506869,0.0003,2]
[311684128,1705327840467,-154.95351395,0.0003,4]
[311684130,1705327840476,-223.91761164,0.0003,4]
[311684132,1705327840486,-2046.884197,0.0003,2]
[311684136,1705327840496,-303.0,0.0003,2]
[311684140,1705327840506,-162.52768205,0.00030067,4]
[311684143,1705327840515,-197.5089968,0.0003013,2]
[311684146,1705327840525,-229.10235383,0.00030136,2]
[311684149,1705327840534,-306.0,0.00030137,2]
[311684151,1705327840543,-309.4108809,0.00030137,2]
[311684152,1705327840634,-306.2959332,0.00030137,2]
[311684153,1705327840646,-271.0,0.00030137,2]
[311684154,1705327840655,-343.36425943,0.00030399,5]
[311684155,1705327840665,-3712.18106101,0.00030552,2]
[311684156,1705327840674,-261.8986851,0.00030886,4]
[311684157,1705327840683,-2002.91079714,0.00030887,4]
[311684158,1705327840693,-323.79910425,0.00030896,4]
[311684159,1705327840702,-156.70193537,0.00030897,4]
[311684160,1705327840711,-153.85852713,0.00030939,7]
[311684161,1705327840722,-377.0,0.0003097,30]
[311684162,1705327840731,-4799.0,0.0003097,30]
[311684163,1705327840740,-153.85852713,0.00030972,7]
[311684164,1705327840749,-150.59929713,0.00030976,7]
[311684165,1705327840758,-377.0,0.0003098,30]
[311684166,1705327840768,-4799.0,0.0003098,30]
[311684167,1705327840777,-377.0,0.0003099,30]
[311684168,1705327840786,-4799.0,0.0003099,30]
[311684169,1705327840795,-156.20229825,0.00030994,7]
[311684170,1705327840804,-956.97,0.00030999,2]
[311684171,1705327840813,-956.97,0.00030999,2]
[311684172,1705327840823,-96945.25540032,0.00031,4]
[311684173,1705327840832,-155.0,0.00031,2]
[311684174,1705327840841,-1500.0,0.00031,2]
[311684175,1705327840851,-155.47151029,0.00031085,7]
[311684176,1705327840860,-274.57,0.000311,4]
[311684177,1705327840870,-153.85852713,0.00031142,7]
[311684178,1705327840879,-153.85852713,0.00031177,7]
[311684179,1705327840888,-153.85852713,0.00031267,7]
[311684180,1705327840897,-4940.86,0.00031274,2]
[311684181,1705327840907,-1189.75,0.00031286,2]
[311684183,1705327840916,-155.47151029,0.00031288,7]
[311684184,1705327840925,-4999.99,0.00031297,2]
[311684186,1705327840934,-153.85852713,0.00031372,7]
[311684188,1705327840943,-155.47151029,0.00031682,7]
[311684189,1705327840952,-1000.0,0.00031683,2]
[311684190,1705327840961,-1000.0,0.00031697,2]
[311684191,1705327840971,-1072.90226488,0.0003171,2]
[311684193,1705327840980,-1000.0,0.0003173,2]
[311684195,1705327840989,-1000.0,0.00031735,2]
[311684196,1705327840998,-1000.0,0.00031736,2]
[311684197,1705327841007,-1000.0,0.00031741,2]
[311684198,1705327841016,-1000.0,0.00031748,2]
[311684199,1705327841025,-1000.0,0.00031761,2]
[311684200,1705327841034,-1000.0,0.00031768,2]
[311684201,1705327841043,-1000.0,0.00031772,2]
[311684202,1705327841052,-1072.90226488,0.000318,2]
[311684203,1705327841062,-1000.0,0.00031838,2]
[311684204,1705327841071,-1000.0,0.00031839,2]
[311684205,1705327841080,-1000.0,0.00031845,2]
[311684206,1705327841089,-1000.0,0.00031848,2]
[311684207,1705327841098,-1000.0,0.00031853,2]
[311684208,1705327841108,-1000.0,0.00031858,2]
[311684209,1705327841118,-371.41198817,0.00031872,2]
[311684210,1705327841127,-1000.0,0.00031875,2]
[311684211,1705327841137,-1000.0,0.00031895,2]
[311684212,1705327841146,-2991.58917265,0.00031899,2]
[311684213,1705327841155,-150.0,0.000319,2]
[311684214,1705327841164,-1000.0,0.000319,2]
[311684215,1705327841174,-1000.0,0.00031906,2]
[311684216,1705327841183,-1000.0,0.00031923,2]
[311684217,1705327841193,-1000.0,0.00031928,2]
[311684218,1705327841202,-1000.0,0.00031946,2]
[311684219,1705327841211,-150.0,0.00031962,2]
[311684220,1705327841220,-377.0,0.00031969,30]
[311684221,1705327841230,-4799.0,0.00031969,30]
[311684222,1705327841240,-377.0,0.00031979,30]
[311684223,1705327841249,-4799.0,0.00031979,30]
[311684225,1705327841258,-377.0,0.00031989,30]
[311684227,1705327841267,-4799.0,0.00031989,30]
[311684228,1705327841276,-956.97,0.00031998,2]
[311684229,1705327841285,-444.52481973,0.00031999,4]
[311684230,1705327841294,-652.810154,0.00031999,4]
[311684231,1705327841303,-178.6090388,0.00031999,4]
[311684232,1705327841313,-228.46651568,0.00031999,4]
[311684233,1705327841322,-500.0,0.00031999,4]
[311684234,1705327841332,-171.80208972,0.00031999,4]
[311684235,1705327841341,-383.30451453,0.00031999,4]
[311684240,1705327841450,-41.59982548,0.00031999,4]
[311684242,1705327841459,-500.0,0.00031999,4]
[311684243,1705327841468,-549.60627528,0.00031999,4]
[311684245,1705327841477,-500.0,0.00031999,4]
[311684247,1705327841487,-500.0,0.00031999,4]
[311684249,1705327841496,-500.0,0.00031999,4]
[311684251,1705327841505,-500.0,0.00031999,4]
[311684252,1705327841515,-500.0,0.00031999,4]
[311684254,1705327841524,-500.0,0.00031999,4]
[311684255,1705327841533,-500.0,0.00031999,4]
[311684256,1705327841543,-500.0,0.00031999,4]
[311684257,1705327841552,-500.0,0.00031999,4]
[311684258,1705327841561,-500.0,0.00031999,4]
[311684259,1705327841570,-500.0,0.00031999,4]
[311684260,1705327841580,-500.0,0.00031999,4]
[311684261,1705327841589,-500.0,0.00031999,4]
[311684262,1705327841598,-500.0,0.00031999,4]
[311684263,1705327841608,-500.0,0.00031999,4]
[311684264,1705327841618,-365.6177392,0.00031999,4]
[311684265,1705327841628,-500.0,0.00031999,4]
[311684266,1705327841637,-500.0,0.00031999,4]
[311684267,1705327841646,-500.0,0.00031999,4]
[311684268,1705327841656,-609.55711511,0.00031999,4]
[311684269,1705327841669,-500.0,0.00031999,4]
[311684270,1705327841678,-509.55711511,0.00031999,4]
[311684271,1705327841687,-500.0,0.00031999,4]
[311684272,1705327841697,-500.0,0.00031999,4]
[311684273,1705327841706,-500.0,0.00031999,4]
[311684274,1705327841715,-500.0,0.00031999,4]
[311684275,1705327841724,-250.0,0.00031999,4]
[311684276,1705327841733,-500.0,0.00031999,4]
[311684277,1705327841743,-250.0,0.00031999,4]
[311684278,1705327841752,-500.0,0.00031999,4]
[311684279,1705327841762,-250.0,0.00031999,4]
[311684280,1705327841771,-500.0,0.00031999,4]
[311684281,1705327841781,-102.57146482,0.00031999,4]
[311684282,1705327842075,-147.42853518,0.00031999,4]
[311684283,1705327842084,-500.0,0.00031999,4]
[311684284,1705327842093,-250.0,0.00031999,4]
[311684285,1705327842103,-250.0,0.00031999,4]
[311684286,1705327842112,-500.0,0.00031999,4]
[311684287,1705327842124,-500.0,0.00031999,4]
[311684288,1705327842134,-250.0,0.00031999,4]
[311684289,1705327842143,-202.73433386,0.00031999,4]
[311684290,1705327842153,-232.80836705,0.00031999,4]
[311684294,1705327842162,-400.87154269,0.00031999,4]
[311684299,1705327842172,-500.0,0.00031999,4]
[311684302,1705327842181,-424.90434001,0.00031999,4]
[311684305,1705327842191,-500.0,0.00031999,4]
[311684307,1705327842199,-28855.81990429,0.00032,15]
[311684310,1705327842216,-1401.49993163,0.00032,15]
[311684339,1705327843529,-5000.0,0.00029032,5]
[311684340,1705327843538,-3306.39,0.0003199,3]
[311684341,1705327843547,-600819.87169105,0.00032,15]
[311684342,1705327843557,-650.43019891,0.00032,4]
[311684343,1705327843566,-292.18002156,0.00032,2]
[311684344,1705327843575,-1200.0,0.00032,4]
[311684345,1705327843584,-270.84411006,0.00032,30]
[311684346,1705327843594,-11452.0,0.00032,2]
[311684347,1705327843603,-215762.40273188,0.00032,15]
[311684376,1705327846915,-1128.15311956,0.00032,15]
[311684492,1705329032679,-191.16884209,0.00026152,2]
[311684494,1705329032688,-261.99076107,0.00026153,2]
[311684496,1705329032697,-154.93802479,0.00026153,4]
[311684499,1705329032706,-225.394333,0.00026154,2]
[311684501,1705329032715,-178.67391792,0.00026179,2]
[311684504,1705329032724,-323.12147464,0.0002618,2]
[311684507,1705329032733,-7993.35951483,0.0002618,2]
[311684510,1705329032743,-1580.16851554,0.00026181,2]
[311684513,1705329032752,-426.65,0.00026189,2]
[311684515,1705329032761,-461.06432413,0.00027,2]
[311684517,1705329032771,-259.15918593,0.00027085,2]
[311684519,1705329032779,-157.77559155,0.00027087,2]
[311684521,1705329032789,-155.56443103,0.00027088,2]
[311684523,1705329032800,-10575.43310448,0.00027089,2]
[311684525,1705329032809,-343.36425943,0.00027269,5]
[311684527,1705329032818,-155.27344603,0.00027398,2]
[311684529,1705329032827,-155.34188934,0.00027398,2]
[311684531,1705329032837,-858.53563101,0.00027398,2]
[311684533,1705329032846,-155.19121382,0.00027398,2]
[311684535,1705329032855,-1255.8233818,0.00027399,2]
[311684537,1705329032864,-10135.33451069,0.000274,2]
[311684539,1705329032873,-274.36755231,0.00028,2]
[311684541,1705329032883,-7173.93965199,0.00028702,2]
[311684543,1705329032892,-156.70193537,0.00028704,2]
[311684545,1705329032902,-200.0,0.000288,15]
[311684547,1705329032911,-155.37817011,0.00029,2]
[311684549,1705329032921,-2296.1,0.00029023,3]
[311684550,1705329032931,-1913.42,0.00029023,3]
[311684552,1705329032941,-2755.32,0.00029029,3]
[311684554,1705329032950,-162.52768205,0.00029032,2]
[311684555,1705329032959,-19190.16378634,0.00029033,4]